bitfinex-derivatives/quotes_ETHF0:USTF0_20250422
["timestamp","ask_amount","ask_price","bid_price","bid_amount"]
[1745315579650,3.21702196,1624.9,1624.7,3.3555]
[1745315579850,3.3798,1624.8,1624.7,3.3555]
[1745315580051,4.61081,1624.8,1624.7,4.58651]
[1745315580250,4.44801196,1624.9,1624.8,1.23101]
[1745315580550,4.44801196,1624.9,1624.8,3.2905]
[1745315581547,4.44801196,1624.9,1624.8,4.52151]
[1745315581749,3.21702196,1624.9,1624.8,4.52151]
[1745315582346,3.21702196,1624.9,1624.8,9.52151]
[1745315582551,3.21702196,1624.9,1624.8,4.24031232]
[1745315582861,0.00922196,1624.9,1624.8,5.47132232]
[1745315583655,0.00922196,1624.9,1624.8,10.47132232]
[1745315584558,0.00922196,1624.9,1624.8,5.47132232]
[1745315588163,3.21702196,1624.9,1624.8,5.47132232]
[1745315588756,6.29462196,1624.9,1624.8,5.47132232]
[1745315590265,7.52556196,1624.9,1624.8,1.23101]
[1745315592258,6.29462196,1624.9,1624.8,1.23101]
[1745315592768,7.52556196,1624.9,1624.8,1.23101]
[1745315592959,3.21702196,1624.9,1624.8,1.23101]
[1745315593165,0.00922196,1624.9,1624.8,1.23101]
[1745315593464,1.23111,1624.7,1624.3,4.61648]
[1745315593661,3.2078,1624.6,1624.3,4.61648]
[1745315593855,3.2078,1624.6,1624.5,1.23124]
[1745315594466,3.2078,1624.6,1624.5,7.66604]
[1745315595063,3.2078,1624.6,1624.5,10.88124]
[1745315596567,3.2249,1624.7,1624.6,1.23117]
[1745315596764,3.2078,1624.7,1624.6,1.23117]
[1745315597069,3.2078,1624.7,1624.6,4.51397]
[1745315599571,3.2078,1624.7,1624.5,6.4348]
[1745315599771,3.0692,1624.6,1624.5,7.66604]
[1745315603075,3.2078,1624.7,1624.6,1.23117]
[1745315603271,4.0826601,1624.9,1624.6,4.45057]
[1745315603475,7.2488601,1624.9,1624.8,1.23101]
[1745315604076,3.17542196,1624.9,1624.8,1.23101]
[1745315605676,4.40636196,1624.9,1624.7,4.63]
[1745315605880,3.2078,1624.8,1624.7,5.86109]
[1745315606072,6.5086,1624.8,1624.7,5.86109]
[1745315606273,1.23112,1624.7,1624.6,1.23113]
[1745315606473,4.53192,1624.7,1624.6,1.23113]
[1745315606773,3.3008,1624.7,1624.6,1.23113]
[1745315607974,4.53189,1624.7,1624.6,1.23113]
[1745315608378,3.3008,1624.7,1624.6,1.23113]
[1745315610774,3.3008,1624.7,1624.6,4.52023]
[1745315610972,3.3008,1624.7,1624.6,1.23113]
[1745315611782,3.3008,1624.7,1624.6,4.31603]
[1745315613183,14.24832167,1624.7,1624.6,1.2311]
[1745315614583,13.46316126,1624.7,1624.6,1.2311]
[1745315615886,14.69425126,1624.7,1624.6,1.2311]
[1745315617690,13.46316126,1624.7,1624.2,3.07868]
[1745315617990,1.23129,1624.5,1624.4,1.23125]
[1745315618485,4.35629,1624.5,1624.4,1.23125]
[1745315619192,3.125,1624.5,1624.4,1.23125]
[1745315619489,4.35624,1624.5,1624.4,1.23125]
[1745315621295,3.125,1624.5,1624.4,1.23125]
[1745315621489,14.07252167,1624.5,1624.4,1.23125]
[1745315622289,14.07252167,1624.5,1624.4,4.31875]
[1745315623391,14.07252167,1624.5,1624.4,8.94875]
[1745315624483,10.94752167,1624.5,1624.4,8.94875]
[1745315625193,8.97289702,1624.5,1624.4,8.94875]
[1745315626593,8.97289702,1624.5,1624.4,13.94875]
[1745315629009,6.92746748,1624.5,1624.4,13.94875]
[1745315629206,3.20474748,1624.5,1624.4,17.15655]
[1745315629404,0.15270748,1624.5,1624.4,17.15655]
[1745315631002,6.76875409,1624.6,1624.5,1.23124]
[1745315631203,6.76875409,1624.6,1624.5,7.54624]
[1745315631403,4.09112409,1624.6,1624.5,12.54624]
[1745315633512,4.09112409,1624.6,1624.5,7.54624]
[1745315633810,2.83350409,1624.6,1624.5,12.54624]
[1745315634008,3.32432196,1624.9,1624.8,1.23101]
[1745315634207,3.32432196,1624.9,1624.8,5.73901]
[1745315634812,3.32432196,1624.9,1624.8,9.04521]
[1745315639615,3.32432196,1624.9,1624.8,5.73901]
[1745315640115,6.53212196,1624.9,1624.8,5.73901]
[1745315640707,9.77352196,1624.9,1624.8,5.73901]
[1745315643512,13.25572196,1624.9,1624.8,5.73901]
[1745315645609,10.04792196,1624.9,1624.8,5.73901]
[1745315646518,3.32432196,1624.9,1624.8,5.73901]
[1745315646718,11.59674439,1624.9,1624.8,5.73901]
[1745315648112,14.80454439,1624.9,1624.8,5.73901]
[1745315649123,11.59674439,1624.9,1624.8,5.73901]
[1745315650023,4.10934042,1624.9,1624.8,5.73901]
[1745315653623,7.31714042,1624.9,1624.8,5.73901]
[1745315654421,15.83728042,1624.9,1624.8,5.73901]
[1745315654925,14.60634042,1624.9,1624.8,5.73901]
[1745315656025,4.10934042,1624.9,1624.8,5.73901]
[1745315657721,0.79424042,1624.9,1624.8,9.41191]
[1745315658327,4.26424042,1624.9,1624.8,9.41191]
[1745315659437,0.79424042,1624.9,1624.8,9.41191]
[1745315660529,4.26464042,1624.9,1624.8,5.73901]
[1745315662326,3.47962196,1624.9,1624.8,5.73901]
[1745315665627,3.47962196,1624.9,1624.8,9.42491]
[1745315666229,0.00922196,1624.9,1624.8,9.42491]
[1745315667029,0.00922196,1624.9,1624.8,14.42491]
[1745315667428,0.00922196,1624.9,1624.8,9.42491]
[1745315669130,0.79414726,1624.9,1624.8,9.42491]
[1745315669825,0.79414726,1624.9,1624.8,14.42491]
[1745315671038,0.79414726,1624.9,1624.8,9.42491]
[1745315672933,4.54154726,1624.9,1624.8,5.62901]
[1745315673130,3.75662196,1624.9,1624.8,5.62901]
[1745315676738,13.91898322,1624.9,1624.8,5.62901]
[1745315676939,21.70516516,1624.9,1624.8,5.62901]
[1745315678037,26.70516516,1624.9,1624.8,1.23101]
[1745315678339,31.14396516,1624.9,1624.8,1.23101]
[1745315679633,29.91296516,1624.9,1624.8,1.23101]
[1745315679828,31.14390516,1624.9,1624.8,1.23101]
[1745315681540,1.23108,1624.8,1624.7,1.23107]
[1745315681743,4.91618,1624.8,1624.7,1.23107]
[1745315685144,5.70130171,1624.8,1624.7,1.23107]
[1745315688947,8.90910171,1624.8,1624.7,1.23107]
[1745315689249,17.92093636,1624.8,1624.7,1.23107]
[1745315689440,15.94414636,1624.8,1624.7,1.23107]
[1745315689745,19.15194636,1624.8,1624.7,1.23107]
[1745315692050,17.92093636,1624.8,1624.7,1.23107]
[1745315692450,14.71313636,1624.8,1624.7,4.75417]
[1745315693645,19.15194636,1624.8,1624.7,4.75417]
[1745315694156,17.92093636,1624.8,1624.7,4.75417]
[1745315694449,14.71313636,1624.8,1624.7,4.75417]
[1745315696254,4.47022171,1624.8,1624.7,4.75417]
[1745315696953,7.67802171,1624.8,1624.7,1.23107]
[1745315697451,8.90903171,1624.8,1624.7,1.23107]
[1745315697948,7.67802171,1624.8,1624.7,1.23107]
[1745315698553,8.90903171,1624.8,1624.7,1.23107]
[1745315699161,7.67802171,1624.8,1624.7,1.23107]
[1745315699662,17.92093636,1624.8,1624.7,1.23107]
[1745315700963,14.23583636,1624.8,1624.7,4.86717]
[1745315703061,10.13796513,1624.8,1624.7,4.86717]
[1745315706161,6.93016513,1624.8,1624.7,9.86717]
[1745315706662,4.28834513,1624.8,1624.7,9.86717]
[1745315707065,2.87067513,1624.8,1624.7,9.86717]
[1745315707265,9.98463565,1625.0,1624.7,8.6361]
[1745315707567,6.39413565,1625.0,1624.9,4.43874]
[1745315707762,6.39413565,1625.0,1624.9,8.78774]
[1745315707962,6.39413565,1625.0,1624.9,17.50204]
[1745315708364,2.29195565,1625.0,1624.9,17.50204]
[1745315708561,6.06403594,1625.0,1624.9,17.50204]
[1745315708962,4.13886594,1625.0,1624.9,17.50204]
[1745315709163,2.21852594,1625.0,1624.9,17.50204]
[1745315709364,7.05980549,1625.1,1625.0,1.23086]
[1745315709564,7.05282395,1625.1,1625.0,8.50186]
[1745315709766,5.80354395,1625.1,1625.0,13.50186]
[1745315712569,5.80354395,1625.1,1625.0,8.50186]
[1745315712868,0.00922196,1625.2,1625.1,1.23079]
[1745315713059,0.00922196,1625.2,1625.1,11.86799]
[1745315715768,0.00922196,1625.2,1625.1,8.08819]
[1745315717868,0.00922196,1625.2,1625.1,11.67379]
[1745315721657,0.00922196,1625.2,1625.1,12.43519]
[1745315724064,0.00922196,1625.2,1625.1,16.03569]
[1745315726471,3.5655,1625.6,1625.5,1.23048]
[1745315726668,3.5655,1625.6,1625.5,5.57648]
[1745315727374,4.09301209,1625.7,1625.6,1.23041]
[1745315727562,4.10223405,1625.7,1625.6,1.23041]
[1745315728570,4.10223405,1625.7,1625.6,4.43821]
[1745315728874,4.10223405,1625.7,1625.6,8.02641]
[1745315729076,0.00922196,1625.7,1625.6,8.02641]
[1745315730269,0.00922196,1625.7,1625.6,4.43821]
[1745315732780,0.00922196,1625.7,1625.6,1.23041]
[1745315733077,8.21702196,1625.7,1625.3,6.28437]
[1745315733267,3.7943,1625.6,1625.5,1.23042]
[1745315733470,7.5022,1625.6,1625.5,1.23042]
[1745315741385,3.7943,1625.6,1625.5,1.23042]
[1745315741584,7.421,1625.6,1625.5,1.23042]
[1745315742988,3.7943,1625.6,1625.5,1.23042]
[1745315743184,3.7943,1625.6,1625.5,8.21482]
[1745315745992,0.00922196,1625.7,1625.6,1.23041]
[1745315746194,0.00922196,1625.7,1625.6,4.90831]
[1745315746690,3.80092196,1625.7,1625.6,4.90831]
[1745315746881,3.80092196,1625.7,1625.6,1.23041]
[1745315753403,7.89393405,1625.7,1625.6,1.23041]
[1745315753897,7.89393405,1625.7,1625.6,4.89731]
[1745315754097,7.89393405,1625.7,1625.6,1.23041]
[1745315755800,12.89393405,1625.7,1625.4,3.2078]
[1745315756097,10.5534,1625.6,1625.1,14.9193]
[1745315756297,4.88331,1625.5,1625.3,1.23058]
[1745315756601,6.8606,1625.4,1625.3,1.23058]
[1745315758695,8.09122,1625.4,1625.2,1.23065]
[1745315758907,1.23071,1625.2,1625.1,1.23074]
[1745315759202,4.43851,1625.2,1625.1,1.23074]
[1745315759505,1.23079,1625.1,1625.0,5.57281]
[1745315760004,3.479,1625.1,1625.0,5.57281]
[1745315760797,4.70979,1625.1,1625.0,5.57281]
[1745315761003,7.91759,1625.1,1625.0,5.57281]
[1745315761206,3.479,1625.1,1625.0,5.57281]
[1745315761897,3.479,1625.1,1625.0,9.14231]
[1745315762501,7.265,1625.4,1625.3,1.23064]
[1745315762707,10.7362,1625.4,1625.3,1.23064]
[1745315764206,11.96676,1625.4,1625.3,1.23064]
[1745315765902,11.96676,1625.4,1625.2,3.5716]
[1745315766100,11.37773772,1625.5,1625.4,1.23056]
[1745315766300,13.75413772,1625.5,1625.4,1.23056]
[1745315766998,13.75413772,1625.5,1625.4,3.65146]
[1745315768303,13.75413772,1625.5,1625.3,7.83591]
[1745315768510,2.3764,1625.4,1625.3,7.83591]
[1745315769599,2.3764,1625.4,1625.3,10.13211]
[1745315771210,3.60696,1625.4,1625.3,10.13211]
[1745315771413,2.3764,1625.4,1625.3,10.13211]
[1745315772115,13.45773226,1625.5,1625.4,1.23056]
[1745315772310,13.45773226,1625.5,1625.4,3.54826]
[1745315773113,10.24993226,1625.5,1625.4,3.54826]
[1745315773715,4.0999729,1625.5,1625.4,3.54826]
[1745315777011,6.5106729,1625.5,1625.4,3.54826]
[1745315779624,4.0999729,1625.5,1625.4,3.54826]
[1745315779831,4.0999729,1625.5,1625.4,11.75606]
[1745315780623,4.0999729,1625.5,1625.4,8.54826]
[1745315780818,4.0999729,1625.5,1625.4,11.75606]
[1745315783731,1.4476829,1625.5,1625.4,11.75606]
[1745315783930,2.9e-06,1625.5,1625.4,11.75606]
[1745315785933,0.00922196,1625.7,1625.6,1.23041]
[1745315786130,0.00922196,1625.7,1625.6,8.78121]
[1745315787536,9.35122196,1625.7,1625.3,1.538]
[1745315787729,4.43836,1625.4,1625.3,1.538]
[1745315788130,9.43836,1625.4,1625.3,1.538]
[1745315788330,9.43836,1625.4,1625.1,1.23072]
[1745315788531,3.2078,1625.2,1625.1,1.23072]
[1745315789034,5.5732,1625.2,1625.1,1.23072]
[1745315789832,5.5732,1625.2,1625.1,11.89399534]
[1745315790032,5.5732,1625.2,1625.1,16.23399534]
[1745315791342,2.3654,1625.2,1625.1,16.23399534]
[1745315791741,5.5732,1625.2,1625.1,13.77879534]
[1745315792333,2.3654,1625.2,1625.1,13.77879534]
[1745315792737,2.3654,1625.2,1625.1,16.01899534]
[1745315793136,7.7326,1625.6,1625.5,1.23048]
[1745315793340,17.93530759,1625.6,1625.5,1.23048]
[1745315793642,22.93530759,1625.6,1625.4,1.2305]
[1745315793844,17.93530759,1625.6,1625.4,1.2305]
[1745315794339,17.93530759,1625.6,1625.5,1.23048]
[1745315795339,22.93530759,1625.6,1625.4,1.23054]
[1745315795538,1.23054,1625.5,1625.4,1.23056]
[1745315796042,6.23054,1625.5,1625.4,1.23056]
[1745315796243,8.64074,1625.5,1625.4,1.23056]
[1745315797549,11.84854,1625.5,1625.4,1.23056]
[1745315798145,10.618,1625.5,1625.4,1.23056]
[1745315798446,11.84848,1625.5,1625.4,1.23056]
[1745315799546,6.84848,1625.5,1625.4,1.23056]
[1745315799845,6.84848,1625.5,1625.3,1.23061]
[1745315800052,2.3207,1625.4,1625.3,1.23061]
[1745315802057,3.55126,1625.4,1625.3,1.23061]
[1745315802250,2.3207,1625.4,1625.3,1.23061]
[1745315803052,2.3207,1625.4,1625.3,5.78741]
[1745315803254,3.55126,1625.4,1625.3,1.23061]
[1745315804351,1.23064,1625.3,1625.2,4.4174]
[1745315804550,5.6068,1625.3,1625.0,4.34]
[1745315804854,6.83748,1625.3,1625.2,1.23071]
[1745315806455,6.83748,1625.3,1625.2,3.50071]
[1745315806859,3.2078,1625.3,1625.2,3.50071]
[1745315807856,6.15095422,1625.3,1625.2,8.50071]
[1745315808555,6.15095422,1625.3,1625.2,3.50071]
[1745315812159,6.15095422,1625.3,1625.2,7.84071]
[1745315812357,9.35875422,1625.3,1625.2,7.84071]
[1745315812558,11.56905422,1625.3,1625.2,7.84071]
[1745315812862,5.4181,1625.3,1625.2,7.84071]
[1745315813958,5.4181,1625.3,1625.2,5.57071]
[1745315814158,5.4181,1625.3,1625.2,7.76991]
[1745315816055,2.2103,1625.3,1625.2,7.76991]
[1745315816760,11.53185422,1625.5,1625.4,1.23056]
[1745315816960,10.58795422,1625.5,1625.4,1.23056]
[1745315817152,13.79575422,1625.5,1625.4,1.23056]
[1745315818660,18.79575422,1625.5,1625.3,1.23062]
[1745315818853,4.3719,1625.4,1625.2,4.34]
[1745315819054,5.3845,1625.3,1625.2,1.23071]
[1745315822570,2.1767,1625.3,1625.2,1.23071]
[1745315822865,5.3845,1625.3,1625.2,1.23071]
[1745315823267,11.53545422,1625.3,1625.2,1.23071]
[1745315826167,12.76609422,1625.3,1625.1,5.79581]
[1745315826367,2.0945,1625.2,1625.1,5.79581]
[1745315829768,4.43846,1625.3,1625.2,1.23071]
[1745315829970,5.1857,1625.3,1625.2,3.26191]
[1745315830871,11.33665422,1625.3,1625.2,3.26191]
[1745315831270,9.35875422,1625.3,1625.2,3.26191]
[1745315832272,10.58939422,1625.3,1625.2,3.26191]
[1745315832676,12.57939422,1625.3,1625.2,3.26191]
[1745315832880,11.34875422,1625.3,1625.2,1.23071]
[1745315833271,12.57939422,1625.3,1625.2,1.23071]
[1745315834383,13.39907229,1625.3,1625.2,1.23071]
[1745315834686,14.62971229,1625.3,1625.2,1.23071]
[1745315835185,11.42191229,1625.3,1625.2,1.23071]
[1745315835387,13.39907229,1625.3,1625.2,1.23071]
[1745315836082,13.39907229,1625.3,1625.2,3.21941]
[1745315838688,13.39907229,1625.3,1625.1,2.3303]
[1745315838994,13.39907229,1625.3,1625.0,6.693]
[1745315838995,2.0702,1625.2,1625.0,4.4135]
[1745315839193,4.43859,1625.1,1625.0,5.64435]
[1745315839390,4.43859,1625.1,1625.0,4.4135]
[1745315839688,6.50339,1625.1,1625.0,4.4135]
[1745315839890,1.23086,1625.0,1624.9,3.29858]
[1745315840186,3.29566,1625.0,1624.9,3.29159846]
[1745315841189,2.0648,1625.0,1624.9,3.29159846]
[1745315841486,3.29566,1625.0,1624.9,5.38109846]
[1745315842390,1.23094,1624.9,1624.8,1.98502196]
[1745315842686,6.52804,1624.9,1624.8,1.98502196]
[1745315842890,6.52804,1624.9,1624.8,3.21603196]
[1745315843195,3.2078,1624.9,1624.8,5.27293196]
[1745315843387,3.2078,1624.9,1624.8,7.36973196]
[1745315844090,6.17023805,1625.1,1625.0,1.23086]
[1745315844290,6.16325651,1625.1,1625.0,5.56786]
[1745315845385,13.41050759,1625.3,1625.2,1.23071]
[1745315845386,3.2078,1625.3,1625.2,1.23071]
[1745315845990,3.2078,1625.3,1625.2,3.31501]
[1745315848695,11.42884358,1625.3,1625.2,3.31501]
[1745315849794,12.65948358,1625.3,1625.2,3.31501]
[1745315849985,11.42884358,1625.3,1625.2,3.31501]
[1745315850989,13.56874358,1625.3,1625.2,3.31501]
[1745315851291,13.56874358,1625.3,1625.2,1.23071]
[1745315852094,14.79942358,1625.3,1625.2,1.23071]
[1745315853995,14.79942358,1625.3,1625.1,7.55133]
[1745315854296,2.1916,1625.2,1625.1,7.55133]
[1745315855898,3.42231,1625.2,1625.1,7.55133]
[1745315856501,3.42231,1625.2,1625.1,2.0577]
[1745315856698,7.89051,1625.2,1625.1,3.28849]
[1745315858001,7.89051,1625.2,1625.1,5.49769]
[1745315858501,7.89051,1625.2,1625.1,4.2669]
[1745315858699,6.6598,1625.2,1625.0,4.337]
[1745315859013,3.2078,1625.1,1625.0,9.9014]
[1745315859501,4.43859,1625.1,1625.0,8.6706]
[1745315859704,4.43859,1625.1,1625.0,6.4614]
[1745315860401,4.43859,1625.1,1625.0,7.69226]
[1745315860600,4.43859,1625.1,1625.0,1.23086]
[1745315862005,3.2078,1625.1,1625.0,1.23086]
[1745315863003,13.48410448,1625.1,1625.0,3.49116]
[1745315866297,11.43526441,1625.1,1625.0,3.49116]
[1745315870205,3.2078,1625.1,1625.0,3.49116]
[1745315873610,11.43526441,1625.1,1625.0,3.49116]
[1745315876398,13.54806441,1625.1,1625.0,3.49116]
[1745315880216,11.43526441,1625.1,1625.0,3.49116]
[1745315881619,13.48410448,1625.1,1625.0,3.49116]
[1745315882104,14.71489448,1625.1,1625.0,3.49116]
[1745315884016,13.48410448,1625.1,1625.0,3.49116]
[1745315884421,15.61030448,1625.1,1625.0,3.49116]
[1745315885820,16.84109448,1625.1,1625.0,1.23086]
[1745315886721,15.61030448,1625.1,1625.0,1.23086]
[1745315887123,16.84109448,1625.1,1625.0,1.23086]
[1745315887422,15.61030448,1625.1,1625.0,1.23086]
[1745315888124,15.61030448,1625.1,1625.0,3.47046]
[1745315888824,16.84109448,1625.1,1625.0,3.47046]
[1745315889217,16.84109448,1625.1,1625.0,1.23086]
[1745315890010,15.61030448,1625.1,1625.0,1.23086]
[1745315890322,16.84109448,1625.1,1625.0,1.23086]
[1745315890817,15.61030448,1625.1,1625.0,1.23086]
[1745315891020,16.84109448,1625.1,1625.0,1.23086]
[1745315891218,6.56479,1625.1,1625.0,1.23086]
[1745315891621,5.334,1625.1,1625.0,1.23086]
[1745315891923,5.334,1625.1,1625.0,3.41096]
[1745315893822,10.27630448,1625.2,1625.1,1.23079]
[1745315894027,10.27630448,1625.2,1625.1,5.69329]
[1745315894826,10.27630448,1625.2,1625.1,3.51319]
[1745315895126,13.67201448,1625.2,1625.1,3.51319]
[1745315895426,12.44130448,1625.2,1625.1,3.51319]
[1745315895628,12.44130448,1625.2,1625.1,5.79179]
[1745315901228,12.44130448,1625.2,1625.1,3.51319]
[1745315903922,12.44130448,1625.2,1625.1,5.80879]
[1745315904331,10.27630448,1625.2,1625.1,5.80879]
[1745315904746,12.36360448,1625.2,1625.1,5.80879]
[1745315906236,2.0873,1625.2,1625.1,5.80879]
[1745315908733,12.36360448,1625.2,1625.1,7.92349]
[1745315910334,13.59431448,1625.2,1625.1,7.92349]
[1745315910535,12.36360448,1625.2,1625.1,7.92349]
[1745315911728,1.23079,1625.1,1625.0,1.23081]
[1745315911933,9.9411,1625.1,1624.9,1.23094]
[1745315912139,1.23087,1625.0,1624.9,1.22395846]
[1745315912334,3.42847,1625.0,1624.9,1.22395846]
[1745315912735,2.1976,1625.0,1624.9,1.22395846]
[1745315913936,2.1976,1625.0,1624.9,3.44725846]
[1745315915138,3.2078,1625.1,1625.0,1.23086]
[1745315915334,3.2078,1625.1,1625.0,5.68476]
[1745315915335,3.20081846,1625.1,1625.0,5.68476]
[1745315915728,5.3242,1625.3,1625.2,1.23071]
[1745315916440,6.55484,1625.3,1625.2,1.23071]
[1745315916636,6.55484,1625.3,1625.2,3.39031]
[1745315917839,5.3242,1625.3,1625.2,3.39031]
[1745315918037,3.2078,1625.3,1625.2,7.71331]
[1745315918241,3.2078,1625.3,1625.2,12.71331]
[1745315918439,13.4954807,1625.3,1625.2,7.71331]
[1745315920136,10.2876807,1625.3,1625.2,7.71331]
[1745315922636,10.2876807,1625.3,1625.2,4.323]
[1745315922835,3.41304,1625.3,1625.2,4.323]
[1745315923035,2.1824,1625.3,1625.2,5.55371]
[1745315924745,2.1824,1625.3,1625.2,1.23071]
[1745315926542,10.40472187,1625.3,1625.2,1.23071]
[1745315928335,10.40472187,1625.3,1624.8,0.00922196]
[1745315928336,17.71287764,1625.3,1624.8,0.00922196]
[1745315928640,3.2078,1624.9,1624.8,7.59349196]
[1745315928942,3.2078,1624.9,1624.8,7.58651042]
[1745315930643,13.48213545,1624.9,1624.8,7.58651042]
[1745315931642,14.71307545,1624.9,1624.8,7.58651042]
[1745315931944,17.01177545,1624.9,1624.8,7.58651042]
[1745315932543,15.78083545,1624.9,1624.8,7.58651042]
[1745315933541,9.61623418,1624.9,1624.8,7.58651042]
[1745315933743,6.40843418,1624.9,1624.8,7.58651042]
[1745315933943,9.61623418,1624.9,1624.8,7.58651042]
[1745315934352,7.31753418,1624.9,1624.8,7.58651042]
[1745315935048,4.10973418,1624.9,1624.8,7.58651042]
[1745315935740,4.10973418,1624.9,1624.8,12.58651042]
[1745315937551,7.31753418,1625.1,1625.0,1.23086]
[1745315937739,4.10973418,1625.1,1625.0,1.23086]
[1745315937942,7.31753418,1625.1,1625.0,1.23086]
[1745315938147,7.31753418,1625.1,1625.0,3.36516]
[1745315939344,4.10973418,1625.1,1625.0,3.36516]
[1745315944456,10.27433545,1625.2,1625.1,1.23079]
[1745315944657,10.27433545,1625.2,1625.1,7.97109]
[1745315948162,4.10973418,1625.2,1625.1,7.97109]
[1745315948361,9.55923418,1625.3,1625.2,1.23071]
[1745315948659,9.55923418,1625.3,1625.2,5.54871]
[1745315948863,6.35143418,1625.3,1625.2,5.54871]
[1745315949059,4.10973418,1625.3,1625.2,7.78721]
[1745315953064,9.52073418,1625.4,1625.3,1.23064]
[1745315953762,7.31753418,1625.4,1625.3,1.23064]
[1745315953962,7.31753418,1625.4,1625.3,3.41964]
[1745315956963,9.55513418,1625.4,1625.3,1.23064]
[1745315961971,9.55513418,1625.4,1625.3,5.74104]
[1745315964775,6.34733418,1625.4,1625.3,5.74104]
[1745315967571,4.10973418,1625.4,1625.3,5.74104]
[1745315967973,6.25593418,1625.5,1625.4,1.23056]
[1745315968273,6.25593418,1625.5,1625.4,5.51506]
[1745315968873,3.26733418,1625.5,1625.4,5.51506]
[1745315969670,5.41353418,1625.5,1625.4,5.51506]
[1745315970670,3.26733418,1625.5,1625.4,10.51506]
[1745315970871,8.9829807,1625.9,1625.8,1.23026]
[1745315971067,8.9829807,1625.9,1625.8,8.75506]
[1745315971268,8.9829807,1625.9,1625.8,13.75506]
[1745315971573,12.18795637,1626.2,1626.1,1.23003]
[1745315971880,12.18795637,1626.2,1626.1,5.54703]
[1745315972284,12.18795637,1626.2,1626.1,9.94403]
[1745315976081,2.19032196,1626.3,1626.2,1.22995]
[1745315976280,2.19032196,1626.3,1626.2,3.45425]
[1745315977478,10.39812196,1626.3,1626.0,0.00922196]
[1745315977679,4.3753,1626.2,1626.1,1.22997]
[1745315977871,6.532,1626.2,1626.0,0.00922196]
[1745315978078,2.1567,1626.1,1626.0,5.54313196]
[1745315978477,2.1567,1626.1,1626.0,7.73493196]
[1745315980686,5.3645,1626.1,1626.0,7.73493196]
[1745315981078,2.1567,1626.1,1626.0,7.73493196]
[1745315981483,5.3645,1626.1,1626.0,7.73493196]
[1745315981683,5.3645,1626.1,1626.0,3.41663196]
[1745315983590,5.3645,1626.1,1626.0,1.23933196]
[1745315984183,2.1567,1626.1,1626.0,1.23933196]
[1745315989696,2.1567,1626.1,1626.0,5.68463196]
[1745315992892,3.2078,1626.2,1626.0,4.45452196]
[1745315993099,3.2078,1626.2,1626.1,5.54003]
[1745315993300,3.2078,1626.2,1626.1,10.08043]
[1745315995095,2.29382196,1626.3,1626.2,1.22995]
[1745315995799,7.29382196,1626.3,1626.2,1.22995]
[1745315997097,2.29382196,1626.3,1626.2,1.22995]
[1745315998093,1.23002,1626.2,1626.1,1.23]
[1745315998291,4.43782,1626.2,1626.1,1.23]
[1745315998494,5.2819,1626.2,1626.1,1.23]
[1745316000594,5.2819,1626.2,1626.0,1.23928196]
[1745316000797,7.79073,1626.1,1626.0,1.23928196]
[1745316001395,12.79073,1626.1,1626.0,0.00922196]
[1745316001598,1.23026,1625.9,1625.8,1.23024]
[1745316001795,3.47577,1626.0,1625.9,1.23017]
[1745316001996,6.68357,1626.0,1625.9,1.23017]
[1745316002191,10.4534,1626.0,1625.4,7.38638]
[1745316002397,3.2078,1625.6,1625.2,8.20807534]
[1745316002598,3.2078,1625.4,1625.2,9.43873534]
[1745316002793,3.47624,1625.3,1625.2,8.20807534]
[1745316003194,2.2456,1625.3,1625.2,9.43878534]
[1745316003403,3.47624,1625.3,1625.2,8.20807534]
[1745316003610,2.2456,1625.3,1625.2,8.20807534]
[1745316003800,3.47624,1625.3,1625.2,8.20807534]
[1745316004208,3.47624,1625.3,1625.1,1.23995196]
[1745316004506,5.3465,1625.2,1625.1,1.23995196]
[1745316005807,5.3465,1625.2,1625.1,0.00922196]
[1745316006311,5.3465,1625.2,1625.1,1.24001196]
[1745316006508,5.3465,1625.2,1625.1,3.41521196]
[1745316011008,5.3465,1625.2,1625.1,5.51281196]
[1745316011807,3.2078,1625.4,1625.3,1.23057]
[1745316012512,0.00922196,1625.5,1625.4,1.23056]
[1745316012703,0.00922196,1625.5,1625.4,3.29706]
[1745316013702,0.00922196,1625.5,1625.4,8.29706]
[1745316015406,0.00922196,1625.5,1625.4,11.50486]
[1745316019013,8.21702196,1625.5,1625.1,2.10682196]
[1745316019313,1.23071,1625.2,1625.1,0.00922196]
[1745316019713,3.29151,1625.2,1625.1,0.00922196]
[1745316020104,1.23087,1625.0,1624.8,8.20807534]
[1745316020310,5.2686,1624.9,1624.8,8.2010938]
[1745316020811,5.2686,1624.9,1624.8,9.4321038]
[1745316022717,5.2686,1624.9,1624.8,1.23101]
[1745316024411,6.49954,1624.9,1624.8,1.23101]
[1745316024613,5.2686,1624.9,1624.8,1.23101]
[1745316025514,1.23101,1624.8,1624.7,0.00922196]
[1745316025715,3.32471,1624.8,1624.7,0.00922196]
[1745316026922,3.32471,1624.8,1624.7,1.24031196]
[1745316027125,2.0937,1624.8,1624.7,1.24031196]
[1745316027616,7.0937,1624.8,1623.9,7.8819]
[1745316027818,3.2078,1624.1,1624.0,3.39452]
[1745316028423,3.2078,1624.3,1624.1,1.23154]
[1745316028610,2.0947,1624.6,1624.3,3.07839]
[1745316028815,2.1157,1624.5,1624.4,1.23132]
[1745316029015,2.1157,1624.5,1624.4,3.29242]
[1745316029212,2.1157,1624.5,1624.4,1.23132]
[1745316031321,2.1157,1624.5,1624.3,1.23134]
[1745316031623,3.2078,1624.4,1624.3,1.23134]
[1745316031819,4.43912,1624.4,1624.2,1.23143]
[1745316032015,2.1204,1624.3,1624.1,3.44959]
[1745316032221,3.2078,1624.2,1624.1,3.44959]
[1745316032416,1.23154,1624.1,1624.0,0.00233461]
[1745316032621,2.1204,1624.1,1624.0,0.00233461]
[1745316032816,2.1204,1624.1,1624.0,1.23395461]
[1745316034027,4.43927,1624.2,1624.1,1.23154]
[1745316034222,4.43927,1624.2,1624.0,1.23389461]
[1745316034525,3.35194,1624.1,1624.0,1.23389461]
[1745316034725,2.1204,1624.1,1624.0,1.23389461]